bitfinex/quotes_BTCUSD_20250829
["timestamp","ask_amount","ask_price","bid_price","bid_amount"]
[1756437023560,0.5637509,111750.0,111740.0,0.22428]
[1756437023802,0.5637509,111750.0,111740.0,0.22625]
[1756437024596,0.5637509,111750.0,111740.0,0.22639326]
[1756437025401,0.5637509,111750.0,111740.0,0.07395326]
[1756437025603,0.5637509,111750.0,111740.0,0.22639326]
[1756437026625,0.5637509,111750.0,111740.0,0.22739326]
[1756437028439,0.5637509,111750.0,111740.0,0.07298326]
[1756437028655,0.57555379,111750.0,111740.0,0.00114326]
[1756437028867,0.57555379,111750.0,111740.0,0.15342326]
[1756437029084,0.5637509,111750.0,111740.0,0.15342326]
[1756437029901,0.5637509,111750.0,111740.0,0.15242326]
[1756437030097,0.5647509,111750.0,111740.0,0.15546326]
[1756437030743,0.5647509,111750.0,111740.0,0.15743326]
[1756437030955,0.17997091,111750.0,111740.0,0.15743326]
[1756437031162,0.62735865,111780.0,111750.0,0.17896753]
[1756437031367,0.57269129,111770.0,111760.0,0.15528]
[1756437031584,0.57269129,111770.0,111760.0,0.15725]
[1756437034600,0.57369129,111770.0,111760.0,0.15725]
[1756437037797,0.57369129,111770.0,111760.0,0.00501]
[1756437038001,0.57369129,111770.0,111760.0,0.15512]
[1756437041025,0.1789549,111760.0,111750.0,0.0688]
[1756437041258,0.56373489,111760.0,111750.0,0.22076]
[1756437041483,0.17897091,111750.0,111740.0,0.00014326]
[1756437041703,0.5637509,111750.0,111740.0,0.00014326]
[1756437042113,0.5637509,111750.0,111740.0,0.15214326]
[1756437042265,0.5637509,111750.0,111740.0,0.15518326]
[1756437042677,0.5637509,111750.0,111740.0,0.15715326]
[1756437043773,0.17897091,111750.0,111740.0,0.15715326]
[1756437043973,0.5637509,111750.0,111740.0,0.15815326]
[1756437044386,0.5637509,111750.0,111740.0,0.00815326]
[1756437044592,0.5637509,111750.0,111740.0,0.15814326]
[1756437044793,0.5637509,111750.0,111740.0,0.15614326]
[1756437045936,0.5637509,111750.0,111740.0,0.15811326]
[1756437046585,0.5637509,111750.0,111740.0,0.00114326]
[1756437046837,0.64685111,111750.0,111740.0,0.00114326]
[1756437047058,0.17897091,111750.0,111740.0,0.00114326]
[1756437047389,0.5637509,111750.0,111740.0,0.00114326]
[1756437047727,0.5637509,111750.0,111740.0,0.00014326]
[1756437047964,0.5647509,111750.0,111740.0,0.00014326]
[1756437048375,0.5637509,111750.0,111740.0,0.00014326]
[1756437048584,0.5637509,111750.0,111740.0,0.00333326]
[1756437048784,0.5647509,111750.0,111740.0,0.00333326]
[1756437049007,0.74134354,111750.0,111740.0,0.00014326]
[1756437049221,0.99304722,111750.0,111740.0,0.00014326]
[1756437049461,0.99932106,111750.0,111740.0,0.00014326]
[1756437049679,1.0150513,111750.0,111740.0,0.00014326]
[1756437050108,1.0160513,111750.0,111740.0,0.00014326]
[1756437050314,1.10434762,111750.0,111740.0,0.00014326]
[1756437050521,1.10334762,111750.0,111740.0,0.00014326]
[1756437050728,1.0160513,111750.0,111740.0,0.00014326]
[1756437051819,1.0070513,111750.0,111740.0,0.00014326]
[1756437052027,1.0060513,111750.0,111740.0,0.00014326]
[1756437052240,1.1594513,111750.0,111740.0,0.00014326]
[1756437052413,1.15417746,111750.0,111740.0,0.00014326]
[1756437053209,1.15317746,111750.0,111740.0,0.00014326]
[1756437055357,1.13636722,111750.0,111740.0,0.00014326]
[1756437060395,1.13616722,111750.0,111740.0,0.00014326]
[1756437062856,0.98304722,111750.0,111740.0,0.00014326]
[1756437063058,1.13600722,111750.0,111740.0,0.00333326]
[1756437063275,1.13600722,111750.0,111740.0,0.00014326]
[1756437064402,1.13600722,111750.0,111740.0,0.00538326]
[1756437064622,0.50997091,111750.0,111740.0,0.00538326]
[1756437064824,0.16997091,111750.0,111740.0,0.00538326]
[1756437065037,0.16997091,111750.0,111740.0,0.22897408]
[1756437065193,0.001,111750.0,111740.0,0.861581]
[1756437065392,0.1789549,111760.0,111740.0,0.861581]
[1756437065601,0.1789549,111760.0,111750.0,0.00319]
[1756437065796,0.1789549,111760.0,111750.0,0.00524]
[1756437066658,0.1799549,111760.0,111750.0,0.00524]
[1756437068198,0.1789549,111760.0,111750.0,0.00524]
[1756437070514,0.1789549,111760.0,111750.0,0.15808]
[1756437070899,0.1789549,111760.0,111750.0,0.00524]
[1756437071105,0.56430489,111760.0,111750.0,0.15599]
[1756437071519,0.56373489,111760.0,111750.0,0.15804]
[1756437071838,0.56373489,111760.0,111750.0,0.00524]
[1756437072787,0.56430489,111760.0,111750.0,0.00524]
[1756437073773,0.56373489,111760.0,111750.0,0.00524]
[1756437074096,0.56430489,111760.0,111750.0,0.00524]
[1756437075854,0.56373489,111760.0,111750.0,0.15796]
[1756437078381,0.1789549,111760.0,111750.0,0.15796]
[1756437079318,0.1789549,111760.0,111750.0,0.15792]
[1756437081343,0.1789549,111760.0,111750.0,0.16707393]
[1756437081587,0.1789549,111760.0,111750.0,0.15792]
[1756437084725,0.1789549,111760.0,111750.0,0.16704866]
[1756437085599,0.1789549,111760.0,111750.0,0.15772]
[1756437086638,0.17805114,111760.0,111750.0,0.15772]
[1756437089219,0.17805114,111760.0,111750.0,0.16653614]
[1756437090867,0.17805114,111760.0,111750.0,0.00524]
[1756437091037,0.17862114,111760.0,111750.0,0.15748]
[1756437091461,0.17862114,111760.0,111750.0,0.00524]
[1756437091681,0.17862114,111760.0,111750.0,0.1574]
[1756437092348,0.56340113,111760.0,111750.0,0.1574]
[1756437092804,0.56340113,111760.0,111750.0,0.15535]
[1756437093039,0.56340113,111760.0,111750.0,0.00319]
[1756437093254,0.17897091,111750.0,111740.0,0.00014326]
[1756437093470,0.5637509,111750.0,111740.0,0.15230326]
[1756437093673,0.5643209,111750.0,111740.0,0.15230326]
[1756437094313,0.5643209,111750.0,111740.0,0.15556326]
[1756437094518,0.5643209,111750.0,111740.0,0.15756326]
[1756437094736,0.5643209,111750.0,111740.0,0.00214326]
[1756437094737,0.65261722,111750.0,111740.0,0.00214326]
[1756437094941,0.74091354,111750.0,111740.0,0.00114326]
[1756437095150,0.65261722,111750.0,111740.0,0.00114326]
[1756437095942,0.65261722,111750.0,111740.0,0.00014326]
[1756437097547,0.17897091,111750.0,111740.0,0.00535326]
[1756437097786,0.1879113,111770.0,111750.0,0.17897091]
[1756437097999,0.17896436,111770.0,111760.0,0.15212]
[1756437098205,0.17896436,111770.0,111760.0,0.15733]
[1756437099557,0.17996436,111770.0,111760.0,0.15733]
[1756437099763,0.17896436,111770.0,111760.0,0.72106489]
[1756437099964,0.17896436,111770.0,111760.0,0.3362849]
[1756437101240,0.17896436,111770.0,111760.0,0.15733]
[1756437101444,0.17896436,111770.0,111760.0,0.15956693]
[1756437101641,0.17896436,111770.0,111760.0,0.15733]
[1756437101857,0.17896436,111770.0,111760.0,0.15956693]
[1756437102060,0.17896436,111770.0,111760.0,0.16156693]
[1756437102362,0.17896436,111770.0,111760.0,0.15933]
[1756437102567,0.17896436,111770.0,111760.0,0.16156693]
[1756437102732,0.17896436,111770.0,111760.0,0.16356693]
[1756437103350,0.17896436,111770.0,111760.0,0.16133]
[1756437105013,0.56431435,111770.0,111760.0,0.15604]
[1756437105214,0.56431435,111770.0,111760.0,0.004]
[1756437105348,0.56431435,111770.0,111760.0,0.15608]
[1756437105829,0.56374435,111770.0,111760.0,0.16129]
[1756437106224,0.17896436,111770.0,111760.0,0.15929]
[1756437106426,0.17896436,111770.0,111760.0,0.16029]
[1756437106603,0.17896436,111770.0,111760.0,0.15829]
[1756437106807,0.17896436,111770.0,111760.0,0.15729]
[1756437107889,0.17896436,111770.0,111760.0,0.15829]
[1756437108110,0.17896436,111770.0,111760.0,0.15304]
[1756437108111,0.56431435,111770.0,111760.0,0.15304]
[1756437108318,0.56431435,111770.0,111760.0,0.15527]
[1756437111099,0.56431435,111770.0,111760.0,0.00323]
[1756437111301,0.56431435,111770.0,111760.0,0.15519]
[1756437111871,0.56431435,111770.0,111760.0,0.15732]
[1756437115143,0.1789549,111760.0,111750.0,0.06884]
[1756437115342,0.56373489,111760.0,111750.0,0.2206]
[1756437115657,0.56430489,111760.0,111750.0,0.1518]
[1756437116786,0.17897091,111750.0,111740.0,0.00337326]
[1756437116990,0.17897091,111750.0,111740.0,0.15517326]
[1756437117150,0.17897091,111750.0,111740.0,0.15730326]
[1756437117349,0.17897091,111750.0,111740.0,0.00550326]
[1756437117552,0.17897091,111750.0,111740.0,0.15730326]
[1756437118036,0.17897091,111750.0,111740.0,0.15830326]
[1756437118435,0.17897091,111750.0,111740.0,0.15930326]
[1756437119530,0.5643209,111750.0,111740.0,0.00214326]
[1756437119739,0.5643209,111750.0,111740.0,0.15926326]
[1756437120386,0.17954091,111750.0,111740.0,0.15926326]
[1756437122023,0.17954091,111750.0,111740.0,0.00537326]
[1756437122222,0.5643209,111750.0,111740.0,0.15382326]
[1756437122637,0.17954091,111750.0,111740.0,0.15382326]
[1756437122883,0.5643209,111750.0,111740.0,0.15382326]
[1756437123071,0.5643209,111750.0,111740.0,0.00214326]
[1756437123285,0.5643209,111750.0,111740.0,0.15382326]
[1756437123519,0.17954091,111750.0,111740.0,0.15918326]
[1756437123724,0.5643209,111750.0,111740.0,0.00537326]
[1756437123918,0.5643209,111750.0,111740.0,0.15918326]
[1756437125140,0.5637509,111750.0,111740.0,0.15918326]
[1756437125373,0.5643209,111750.0,111740.0,0.15918326]
[1756437126321,0.17954091,111750.0,111740.0,0.15918326]
[1756437126526,0.5643209,111750.0,111740.0,0.15918326]
[1756437126738,0.5643209,111750.0,111740.0,0.00214326]
[1756437126932,0.5643209,111750.0,111740.0,0.15382326]
[1756437127881,0.5643209,111750.0,111740.0,0.15282326]
[1756437128501,0.5643209,111750.0,111740.0,0.15182326]
[1756437128715,0.57308791,111750.0,111740.0,0.15182326]
[1756437129146,0.57308791,111750.0,111740.0,0.15505326]
[1756437130855,0.57308791,111750.0,111740.0,0.15182326]
[1756437133996,0.57308791,111750.0,111740.0,0.15505326]
[1756437134379,0.60123959,111750.0,111740.0,0.15174326]
[1756437134583,0.66138423,111750.0,111740.0,0.15174326]
[1756437136474,0.66138423,111750.0,111740.0,0.00014326]
[1756437138281,0.66138423,111750.0,111740.0,0.00333326]
[1756437139162,0.48241332,111750.0,111740.0,0.00014326]
[1756437139364,0.48241332,111750.0,111740.0,0.00333326]
[1756437139602,0.66138423,111750.0,111740.0,0.00014326]
[1756437141782,0.66138423,111750.0,111740.0,0.00333326]
[1756437143830,0.66138423,111750.0,111740.0,0.00014326]
[1756437144040,0.17901751,111730.0,111720.0,0.00319]
[1756437144245,0.5637975,111730.0,111720.0,0.00319]
[1756437144452,0.5637975,111730.0,111720.0,0.00518]
[1756437147996,0.17901751,111730.0,111720.0,0.00518]
[1756437151925,0.5637975,111730.0,111720.0,0.00518]
[1756437152146,0.5637975,111730.0,111690.0,0.06884]
[1756437152147,0.51901897,111720.0,111690.0,0.06884]
[1756437152380,0.56383101,111700.0,111690.0,0.06884]
[1756437152589,0.56383101,111700.0,111690.0,0.22239]
[1756437152808,0.56383101,111700.0,111690.0,0.22558]
[1756437153251,0.17905102,111700.0,111690.0,0.22558]
[1756437153497,0.56383101,111700.0,111690.0,0.22558]
[1756437153741,0.1790987,111700.0,111690.0,0.22558]
[1756437153969,0.56387869,111700.0,111690.0,0.22558]
[1756437154653,0.56387869,111700.0,111690.0,0.22658]
[1756437154875,0.56444869,111700.0,111690.0,0.07303]
[1756437155089,0.56444869,111700.0,111690.0,0.2214]
[1756437155370,0.56444869,111700.0,111690.0,0.22244]
[1756437155791,0.56444869,111700.0,111690.0,0.22463]
[1756437156820,0.56444869,111700.0,111690.0,0.22363]
[1756437158292,0.56444869,111700.0,111690.0,0.00319]
[1756437158460,0.56444869,111700.0,111690.0,0.15479]
[1756437158673,0.56444869,111700.0,111690.0,0.1516]
[1756437160032,0.56444869,111700.0,111690.0,0.15479]
[1756437161038,0.17908309,111680.0,111670.0,0.10967384]
[1756437161320,0.17908309,111680.0,111670.0,0.26326384]
[1756437161534,0.17908309,111680.0,111670.0,0.26645384]
[1756437162415,0.17908309,111680.0,111670.0,0.26845384]
[1756437162762,0.17908309,111680.0,111670.0,0.65323383]
[1756437162980,0.17908309,111680.0,111670.0,0.26845384]
[1756437163153,0.17908309,111680.0,111670.0,0.07602]
[1756437163353,0.17908309,111680.0,111670.0,0.22762]
[1756437163557,0.17908309,111680.0,111670.0,0.22962]
[1756437164149,0.17965309,111680.0,111670.0,0.07603]
[1756437164389,0.17965309,111680.0,111670.0,0.22444]
[1756437164589,0.56443308,111680.0,111670.0,0.22444]
[1756437164750,0.25400456,111680.0,111670.0,0.22444]
[1756437164954,0.17965309,111680.0,111670.0,0.22244]
[1756437165320,0.17965309,111680.0,111670.0,0.1536]
[1756437165452,0.17965309,111680.0,111670.0,0.15878]
[1756437166562,0.17908309,111680.0,111670.0,0.72065912]
[1756437167750,0.17908309,111680.0,111670.0,0.54155999]
[1756437167953,0.17908309,111680.0,111670.0,0.54255999]
[1756437168907,0.17908309,111680.0,111670.0,0.54355999]
[1756437176610,0.17908309,111680.0,111670.0,0.72265912]
[1756437177816,0.17908309,111680.0,111670.0,0.33787913]
[1756437178027,0.17908309,111680.0,111670.0,0.54355999]
[1756437179939,0.17908309,111680.0,111670.0,0.15878]
[1756437180153,0.17908309,111680.0,111670.0,0.54355999]
[1756437180877,0.17908309,111680.0,111670.0,0.57048099]
[1756437184545,0.17908309,111680.0,111670.0,0.54355999]
[1756437185239,0.17908309,111680.0,111670.0,0.39195999]
[1756437185452,0.17908309,111680.0,111670.0,0.54355999]
[1756437186286,0.17908309,111680.0,111670.0,0.00718]
[1756437186427,0.17908309,111680.0,111670.0,0.39195999]
[1756437186630,0.17908309,111680.0,111670.0,0.15878]
[1756437187196,0.17965309,111680.0,111670.0,0.1536]
[1756437187372,0.60024955,111680.0,111670.0,0.1536]
[1756437187598,0.56479308,111680.0,111670.0,0.1536]
[1756437188191,0.56479308,111680.0,111670.0,0.1526]
[1756437188391,0.56479308,111680.0,111670.0,0.001]
[1756437188593,0.56479308,111680.0,111670.0,0.1526]
[1756437188772,0.56479308,111680.0,111670.0,0.1516]
[1756437188974,0.17909913,111670.0,111660.0,0.06884]
[1756437189290,0.17909913,111670.0,111660.0,0.22044]
[1756437189499,0.17966913,111670.0,111660.0,0.22044]
[1756437190063,0.17966913,111670.0,111660.0,0.22144]
[1756437190919,0.17966913,111670.0,111660.0,0.06984]
[1756437191160,0.17966913,111670.0,111660.0,0.22244]
[1756437192081,0.17966913,111670.0,111660.0,0.22356]
[1756437192272,0.17966913,111670.0,111660.0,0.22044]
[1756437192760,0.17966913,111670.0,111660.0,0.22356]
[1756437193726,0.17966913,111670.0,111660.0,0.22044]
[1756437195169,0.17966913,111670.0,111660.0,0.22356]
[1756437195811,0.17966913,111670.0,111660.0,0.22572]
[1756437196293,0.17966913,111670.0,111660.0,0.22044]
[1756437196858,0.17966913,111670.0,111660.0,0.22356]
[1756437197181,0.1887184,111670.0,111660.0,0.22356]
[1756437197761,0.17966913,111670.0,111660.0,0.22356]
[1756437198169,0.17966913,111670.0,111660.0,0.22572]
[1756437199210,0.17909913,111670.0,111660.0,0.22572]
[1756437204483,0.17966913,111670.0,111660.0,0.22572]
[1756437204682,0.17966913,111670.0,111660.0,0.22352]
[1756437205156,0.17966913,111670.0,111660.0,0.00312]
[1756437205325,0.17911517,111660.0,111650.0,0.00302]
[1756437205564,0.17911517,111660.0,111650.0,0.15458]
[1756437205747,0.17911517,111660.0,111650.0,0.15665]
[1756437206522,0.17916282,111660.0,111650.0,0.15865]
[1756437207454,0.17916282,111660.0,111650.0,0.15965]
[1756437208451,0.17916282,111660.0,111650.0,0.54442999]
[1756437213191,0.17916282,111660.0,111650.0,0.39286999]
[1756437213392,0.17916282,111660.0,111650.0,0.54442999]
[1756437223723,0.17916282,111660.0,111650.0,0.54438999]
[1756437224946,0.17916282,111660.0,111650.0,0.7235212]
[1756437226889,0.17916282,111660.0,111650.0,0.7504472]
[1756437228076,0.17973282,111660.0,111650.0,0.181446]
[1756437228284,0.17973282,111660.0,111650.0,0.184396]
[1756437228565,0.17916282,111660.0,111650.0,0.186416]
[1756437228818,0.17916282,111660.0,111650.0,0.15949]
[1756437230289,0.17916282,111660.0,111650.0,0.54426999]
[1756437232093,0.17916282,111660.0,111650.0,0.39274999]
[1756437232319,0.17916282,111660.0,111650.0,0.54426999]
[1756437233278,0.17916282,111660.0,111650.0,0.00797]
[1756437233513,0.17973282,111660.0,111650.0,0.15945]
[1756437234581,0.17973282,111660.0,111650.0,0.00797]
[1756437234782,0.17973282,111660.0,111650.0,0.15743]
[1756437235496,0.17973282,111660.0,111650.0,0.00595]
[1756437235703,0.17973282,111660.0,111650.0,0.15743]
[1756437236565,0.17973282,111660.0,111650.0,0.00595]
[1756437236774,0.17973282,111660.0,111650.0,0.15743]
[1756437236979,0.17973282,111660.0,111650.0,0.15945]
[1756437237181,0.17916282,111660.0,111650.0,0.15945]
[1756437237408,0.17973282,111660.0,111650.0,0.15945]
[1756437239355,0.17916282,111660.0,111650.0,0.15945]
[1756437240270,0.17916282,111660.0,111650.0,0.54422999]
[1756437241641,0.17916282,111660.0,111650.0,0.39274999]
[1756437241833,0.17916282,111660.0,111650.0,0.54422999]
[1756437242079,0.17916282,111660.0,111650.0,0.61310999]
[1756437243682,0.17916282,111660.0,111650.0,0.22833]
[1756437243853,0.17916282,111660.0,111650.0,0.61310999]
[1756437245564,0.17916282,111660.0,111650.0,0.7922412]
[1756437247074,0.17916282,111660.0,111650.0,0.8191662]
[1756437248247,0.17916282,111660.0,111650.0,0.8191262]
[1756437248843,0.17916282,111660.0,111650.0,0.63999499]
[1756437249060,0.17916282,111660.0,111650.0,0.255215]
[1756437249391,0.17973282,111660.0,111650.0,0.098805]
[1756437249530,0.17973282,111660.0,111650.0,0.22332]
[1756437249725,0.17916282,111660.0,111650.0,0.61306999]
[1756437249928,0.17916282,111660.0,111650.0,0.7922012]
[1756437250444,0.17916282,111660.0,111650.0,0.8191272]
[1756437250645,4.765e-05,111660.0,111650.0,0.90742352]
[1756437251215,4.765e-05,111660.0,111650.0,1.26836234]
[1756437251632,4.765e-05,111660.0,111650.0,1.26736234]
[1756437251812,4.765e-05,111660.0,111650.0,1.26536234]
[1756437252021,4.765e-05,111660.0,111650.0,1.26736234]
[1756437252171,4.765e-05,111660.0,111650.0,1.27136234]
[1756437253627,4.765e-05,111660.0,111650.0,1.67136234]
[1756437254499,6.13e-06,111660.0,111650.0,1.67603197]
[1756437254735,6.13e-06,111660.0,111650.0,1.72603197]
[1756437254909,6.13e-06,111660.0,111650.0,1.67603197]
[1756437255307,6.13e-06,111660.0,111650.0,1.83714009]
[1756437255534,6.13e-06,111660.0,111650.0,2.52192008]
[1756437255807,0.18804097,111720.0,111700.0,0.17905102]
[1756437256015,0.179035,111710.0,111700.0,0.56383101]
[1756437256130,0.18808873,111720.0,111700.0,0.78908101]
[1756437256331,0.179035,111710.0,111700.0,0.63768101]
[1756437256541,0.179035,111710.0,111700.0,0.66459401]
[1756437256979,0.179035,111710.0,111700.0,0.82480395]
[1756437257188,0.179035,111710.0,111700.0,0.81599401]
[1756437257754,0.18808873,111720.0,111700.0,0.81599401]
[1756437257961,0.179035,111710.0,111700.0,0.81599401]
[1756437258495,0.179035,111710.0,111700.0,0.81699401]
[1756437258694,0.179035,111710.0,111700.0,0.81599401]
[1756437259598,0.18808873,111720.0,111710.0,0.179035]
[1756437259803,0.18808873,111720.0,111710.0,0.56904499]
[1756437260698,0.18865873,111720.0,111710.0,0.00523]
[1756437260906,0.18865873,111720.0,111710.0,0.1514]
[1756437261327,0.179035,111710.0,111700.0,0.57209931]
[1756437261504,0.179035,111710.0,111700.0,0.72645931]
[1756437261672,0.179035,111710.0,111700.0,0.90551033]
[1756437261897,0.179035,111710.0,111700.0,0.75315033]
[1756437262106,0.179035,111710.0,111700.0,0.90451033]
[1756437262980,0.179035,111710.0,111700.0,0.90651033]
[1756437263185,0.179035,111710.0,111700.0,0.75515033]
[1756437263388,0.179035,111710.0,111700.0,0.90851033]
[1756437264485,0.179035,111710.0,111700.0,0.75715033]
[1756437264619,0.179035,111710.0,111700.0,0.90851033]
[1756437265401,0.179035,111710.0,111700.0,0.75715033]
[1756437265636,0.18808873,111720.0,111700.0,0.43543402]
[1756437265839,0.179035,111710.0,111700.0,0.43543402]
[1756437266042,0.179035,111710.0,111700.0,0.79330101]
[1756437266377,0.179035,111710.0,111700.0,0.81821401]
[1756437266597,0.179035,111710.0,111700.0,0.81621401]
[1756437266827,0.179035,111710.0,111700.0,0.81721401]
[1756437268318,0.18808873,111720.0,111700.0,0.81721401]
[1756437268493,0.18808873,111720.0,111710.0,0.39024792]
[1756437268681,0.18808873,111720.0,111710.0,0.00323]
[1756437268883,0.18865873,111720.0,111710.0,0.00746793]
[1756437269083,0.18865873,111720.0,111710.0,0.03438093]
[1756437269286,0.18865873,111720.0,111710.0,0.032143]
[1756437269908,0.18865873,111720.0,111710.0,0.033143]
[1756437270662,0.18865873,111720.0,111710.0,0.034143]
[1756437272937,0.18865873,111720.0,111710.0,0.185463]
[1756437279411,0.17906673,111720.0,111710.0,0.74927799]
[1756437282216,0.17963673,111720.0,111710.0,0.034143]
[1756437282364,0.56441672,111720.0,111710.0,0.180193]
[1756437282883,0.56477672,111720.0,111710.0,0.180193]
[1756437283083,0.56477672,111720.0,111710.0,0.179193]
[1756437283416,0.56441672,111720.0,111710.0,0.179193]
[1756437283624,0.56441672,111720.0,111710.0,0.027913]
[1756437283756,0.56441672,111720.0,111710.0,0.179193]
[1756437284199,0.58119653,111720.0,111710.0,0.027913]
[1756437284399,0.58748869,111720.0,111710.0,0.15228]
[1756437284577,0.179035,111710.0,111700.0,0.06888]
[1756437284775,0.56381499,111710.0,111700.0,0.250303]
[1756437284963,0.56438499,111710.0,111700.0,0.250303]
[1756437285158,0.56438499,111710.0,111700.0,0.099023]
[1756437285404,0.56438499,111710.0,111700.0,0.250303]
[1756437286015,0.56438499,111710.0,111700.0,0.251303]
[1756437286175,0.56438499,111710.0,111700.0,0.252303]
[1756437287095,0.179605,111710.0,111700.0,0.254303]
[1756437287506,0.179605,111710.0,111700.0,0.252303]
[1756437288025,0.56438499,111710.0,111700.0,0.252303]
[1756437288805,0.56438499,111710.0,111700.0,0.254453]
[1756437289823,0.179605,111710.0,111700.0,0.254453]
[1756437290754,0.179035,111710.0,111700.0,0.254453]
[1756437291075,0.179035,111710.0,111700.0,0.29439657]
[1756437294019,0.179605,111710.0,111700.0,0.29439657]
[1756437294230,0.179035,111710.0,111700.0,0.29439657]
[1756437295804,0.179035,111710.0,111700.0,0.29339657]
[1756437296004,0.179035,111710.0,111700.0,0.29439657]
[1756437296722,0.179035,111710.0,111700.0,0.47344759]
[1756437297154,0.179035,111710.0,111700.0,0.47244759]
[1756437297327,0.179035,111710.0,111700.0,0.47444759]
[1756437297526,0.179035,111710.0,111700.0,0.47344759]
[1756437297896,0.179035,111710.0,111700.0,0.43350402]
[1756437298307,0.179035,111710.0,111700.0,0.43550402]
[1756437298753,0.179035,111710.0,111700.0,0.256453]
[1756437298949,0.179035,111710.0,111700.0,0.43550402]
[1756437300769,0.56384672,111720.0,111700.0,0.43550402]
[1756437300770,0.17907235,111720.0,111700.0,0.90858033]
[1756437300975,0.17907235,111720.0,111710.0,0.18450293]
[1756437301174,0.17907235,111720.0,111710.0,0.184415]
[1756437301612,0.17907235,111720.0,111710.0,0.211325]
[1756437302380,4.776e-05,111720.0,111710.0,0.68440131]
[1756437302927,4.776e-05,111720.0,111710.0,0.68540131]
[1756437303552,4.776e-05,111720.0,111710.0,0.68640131]
[1756437304166,4.776e-05,111720.0,111710.0,0.83760131]
[1756437304376,4.776e-05,111720.0,111710.0,1.08440131]
[1756437304769,4.776e-05,111720.0,111710.0,0.85682132]
[1756437305001,4.776e-05,111720.0,111710.0,1.24160131]
[1756437305205,4.776e-05,111720.0,111710.0,1.09040131]
[1756437305380,4.776e-05,111720.0,111710.0,1.24160131]
[1756437305940,4.776e-05,111720.0,111710.0,0.85682132]
[1756437307434,4.776e-05,111720.0,111710.0,0.85678132]
[1756437310112,4.776e-05,111720.0,111710.0,1.24156131]
[1756437314999,0.17901244,111740.0,111720.0,0.17900626]
[1756437315207,0.18796178,111740.0,111730.0,0.22542753]
[1756437315416,0.18853178,111740.0,111730.0,0.22319]
[1756437315824,0.18853178,111740.0,111730.0,0.250098]
[1756437316034,0.18853178,111740.0,111730.0,0.259246]
[1756437316234,0.18796178,111740.0,111730.0,0.261396]
[1756437316660,0.18796178,111740.0,111730.0,0.44039895]
[1756437317275,0.18796178,111740.0,111730.0,0.44139895]
[1756437317731,0.18796178,111740.0,111730.0,0.44239895]
[1756437318505,0.18796178,111740.0,111730.0,0.263396]
[1756437318721,0.18853178,111740.0,111730.0,0.252098]
[1756437319344,0.18853178,111740.0,111730.0,0.248868]
[1756437320271,0.18853178,111740.0,111730.0,0.252018]
[1756437321767,0.18853178,111740.0,111730.0,0.248828]
[1756437322182,0.18853178,111740.0,111730.0,0.251978]
[1756437322660,0.18853178,111740.0,111730.0,0.100898]
[1756437322809,0.18853178,111740.0,111730.0,0.251978]
[1756437324040,0.57331177,111740.0,111730.0,0.251978]
[1756437324469,0.18853178,111740.0,111730.0,0.251978]
[1756437324668,0.57331177,111740.0,111730.0,0.251978]
[1756437327008,0.57331177,111740.0,111730.0,0.254068]
[1756437327463,0.57331177,111740.0,111730.0,0.251978]
[1756437328341,0.57331177,111740.0,111730.0,0.254068]
[1756437328873,0.17898693,111740.0,111730.0,0.43307095]
[1756437329091,0.17898693,111740.0,111730.0,0.81785094]
[1756437330302,0.17898693,111740.0,111730.0,0.43307095]
[1756437333750,0.08870301,111750.0,111730.0,0.43307095]
[1756437333947,0.17898693,111740.0,111730.0,0.42992095]
[1756437334151,0.17898693,111740.0,111730.0,0.40301295]
[1756437334577,0.17898693,111740.0,111730.0,0.43106895]
[1756437335545,0.17898693,111740.0,111730.0,0.43206895]
[1756437337464,0.17898693,111740.0,111730.0,0.43306895]
[1756437339540,0.17898693,111740.0,111730.0,0.28198895]
[1756437339749,0.17898693,111740.0,111730.0,0.43298895]
[1756437340556,0.08870301,111750.0,111730.0,0.43298895]
[1756437340757,0.08870301,111750.0,111740.0,0.00315]
[1756437340957,0.08927301,111750.0,111740.0,0.00315]
[1756437341303,0.08927301,111750.0,111740.0,0.030056]
[1756437341468,0.08927301,111750.0,111740.0,0.03229333]
[1756437341667,0.08927301,111750.0,111740.0,0.030056]
[1756437343562,0.474053,111750.0,111740.0,0.030056]
[1756437344346,0.08927301,111750.0,111740.0,0.03438333]
[1756437344672,0.07975447,111750.0,111740.0,0.21337026]
[1756437344893,0.07975447,111750.0,111740.0,0.21113293]
[1756437345929,0.07975447,111750.0,111740.0,0.21213293]
[1756437346365,0.08032447,111750.0,111740.0,0.183016]
[1756437346572,0.08032447,111750.0,111740.0,0.185106]
[1756437346775,0.07975447,111750.0,111740.0,0.185106]
[1756437350152,0.07975447,111750.0,111740.0,0.36409293]
[1756437354898,0.17897091,111750.0,111740.0,0.36409293]
[1756437355687,0.5643209,111750.0,111740.0,0.182766]
[1756437355887,0.5643209,111750.0,111740.0,0.179826]
[1756437356372,0.5643209,111750.0,111740.0,0.028906]
[1756437357224,0.5643209,111750.0,111740.0,0.179826]
[1756437357960,0.5643209,111750.0,111740.0,0.028906]
[1756437358196,0.5646809,111750.0,111740.0,0.002]
[1756437358398,0.65297722,111750.0,111740.0,0.002]
[1756437358603,0.65297722,111750.0,111740.0,0.15292]
[1756437359040,0.96155347,111750.0,111740.0,0.15192]
[1756437359258,0.17898693,111740.0,111730.0,0.06884]
[1756437359466,0.52623505,111740.0,111730.0,0.21976]
[1756437360907,0.52623505,111740.0,111730.0,0.22076]
[1756437361944,0.52623505,111740.0,111730.0,0.22176]
[1756437362147,0.52623505,111740.0,111730.0,0.22685]
[1756437362357,0.52623505,111740.0,111730.0,0.2237]
[1756437362564,0.52623505,111740.0,111730.0,0.2227]
[1756437363142,0.17898693,111740.0,111730.0,0.22485]
[1756437363554,0.52566505,111740.0,111730.0,0.22485]
[1756437363961,0.52623505,111740.0,111730.0,0.2227]
[1756437364386,0.52623505,111740.0,111730.0,0.2267]
[1756437364794,0.52623505,111740.0,111730.0,0.2247]
[1756437365235,0.52623505,111740.0,111730.0,0.2237]
[1756437365606,0.52623505,111740.0,111730.0,0.07178]
[1756437365828,0.52623505,111740.0,111730.0,0.2227]
[1756437366025,0.52623505,111740.0,111730.0,0.2247]
[1756437366218,0.52623505,111740.0,111730.0,0.22685]
[1756437366792,0.52623505,111740.0,111730.0,0.22176]
[1756437367027,0.52623505,111740.0,111730.0,0.22685]
[1756437367199,0.52566505,111740.0,111730.0,0.22685]
[1756437369307,0.17898693,111740.0,111730.0,0.22685]
[1756437371304,0.52566505,111740.0,111730.0,0.22685]
[1756437375111,0.52623505,111740.0,111730.0,0.22685]
[1756437375294,0.52623505,111740.0,111730.0,0.2247]
[1756437375511,0.17898693,111740.0,111730.0,0.22685]
[1756437375731,0.52623505,111740.0,111730.0,0.07593]
[1756437375933,0.52623505,111740.0,111730.0,0.22176]